[Event "Late-Titled-Tuesday-Blitz-May-28-2024"]
[Site "Chess.com"]
[Date "2024.05.28"]
[Round "3"]
[White "Slovak_fighter2000"]
[Black "NCchamp"]
[Result "1-0"]
[WhiteElo "2550"]
[BlackElo "2353"]
[TimeControl "180+1"]
[EndTime "14:28:53 PDT"]
[Termination "Slovak_fighter2000 won by resignation"]

1. c4 {[%clk 0:03:00.9]} 1... c6 {[%clk 0:02:59.4]} 2. d4 {[%clk 0:02:54]} 2...
d5 {[%clk 0:03:00.3]} 3. Nf3 {[%clk 0:02:53.6]} 3... Nf6 {[%clk 0:02:59.8]} 4.
e3 {[%clk 0:02:54]} 4... a6 {[%clk 0:02:59.7]} 5. Nc3 {[%clk 0:02:50]} 5... b5
{[%clk 0:02:59.4]} 6. b3 {[%clk 0:02:49.8]} 6... Bg4 {[%clk 0:02:58.8]} 7. Be2
{[%clk 0:02:49.4]} 7... e6 {[%clk 0:02:58.6]} 8. O-O {[%clk 0:02:49]} 8... Bd6
{[%clk 0:02:56.5]} 9. h3 {[%clk 0:02:48.8]} 9... Bh5 {[%clk 0:02:55.2]} 10. a4
{[%clk 0:02:41.6]} 10... b4 {[%clk 0:02:52.2]} 11. Nb1 {[%clk 0:02:35.7]} 11...
a5 {[%clk 0:02:51.7]} 12. Nbd2 {[%clk 0:02:35.1]} 12... Nbd7 {[%clk 0:02:51.1]}
13. Bb2 {[%clk 0:02:35.1]} 13... O-O {[%clk 0:02:49.6]} 14. Rc1 {[%clk
0:02:23.6]} 14... Rc8 {[%clk 0:02:44.8]} 15. Bd3 {[%clk 0:02:11]} 15... Bg6
{[%clk 0:02:42.8]} 16. Bxg6 {[%clk 0:02:06.2]} 16... hxg6 {[%clk 0:02:43.7]} 17.
Qe2 {[%clk 0:02:06.7]} 17... Qc7 {[%clk 0:02:30.1]} 18. cxd5 {[%clk 0:01:57.7]}
18... exd5 {[%clk 0:02:28.4]} 19. Rc2 {[%clk 0:01:57.8]} 19... Qb7 {[%clk
0:02:26]} 20. Rfc1 {[%clk 0:01:57]} 20... Rfe8 {[%clk 0:02:21.5]} 21. Ne1 {[%clk
0:01:43.8]} 21... Ne4 {[%clk 0:02:14.2]} 22. Nxe4 {[%clk 0:01:41.6]} 22... Rxe4
{[%clk 0:02:15.1]} 23. Nd3 {[%clk 0:01:34.3]} 23... Nb8 {[%clk 0:02:13]} 24. Nc5
{[%clk 0:01:31.6]} 24... Qe7 {[%clk 0:02:12.2]} 25. Nxe4 {[%clk 0:01:31]} 25...
Qxe4 {[%clk 0:02:10.3]} 26. Qf3 {[%clk 0:01:26.7]} 26... Qe7 {[%clk 0:02:10.1]}
27. Qg4 {[%clk 0:01:22.1]} 27... Rc7 {[%clk 0:02:09.4]} 28. Re2 {[%clk
0:01:10.4]} 28... Qe8 {[%clk 0:02:02.8]} 29. e4 {[%clk 0:01:09.5]} 29... dxe4
{[%clk 0:02:02.3]} 30. Rxe4 {[%clk 0:01:08.5]} 30... Qd8 {[%clk 0:02:02.2]} 31.
Qe2 {[%clk 0:01:07]} 31... Qg5 {[%clk 0:01:23]} 32. Re8+ {[%clk 0:00:51.2]}
32... Kh7 {[%clk 0:01:20.7]} 33. Qg4 {[%clk 0:00:36.1]} 33... Qxg4 {[%clk
0:01:07.5]} 34. hxg4 {[%clk 0:00:37]} 34... Nd7 {[%clk 0:01:07.8]} 35. Ra8
{[%clk 0:00:31.9]} 35... Bf4 {[%clk 0:01:02.4]} 36. Rc2 {[%clk 0:00:30.4]} 36...
Nb6 {[%clk 0:00:59.6]} 37. Rxa5 {[%clk 0:00:29.5]} 37... Nd5 {[%clk 0:00:59.6]}
38. g3 {[%clk 0:00:25.6]} 38... Bd6 {[%clk 0:00:59.7]} 39. Ra6 {[%clk
0:00:23.5]} 39... Re7 {[%clk 0:00:57.4]} 40. Raxc6 {[%clk 0:00:23.1]} 40... Bb8
{[%clk 0:00:56.9]} 41. Kg2 {[%clk 0:00:23]} 41... Ba7 {[%clk 0:00:53.7]} 42. a5
{[%clk 0:00:22]} 42... f5 {[%clk 0:00:44.5]} 43. gxf5 {[%clk 0:00:21.2]} 43...
gxf5 {[%clk 0:00:45.4]} 44. Rd6 {[%clk 0:00:21]} 44... Nf6 {[%clk 0:00:43.9]}
45. d5 {[%clk 0:00:18.3]} 45... Ne4 {[%clk 0:00:43.8]} 46. Re6 {[%clk 0:00:18]}
46... Rf7 {[%clk 0:00:42.4]} 47. d6 {[%clk 0:00:17.2]} 47... Rd7 {[%clk
0:00:35.2]} 48. Re7 {[%clk 0:00:16.3]} 48... Rxd6 {[%clk 0:00:35.6]} 49. Rxg7+
{[%clk 0:00:15.5]} 49... Kh6 {[%clk 0:00:35.7]} 50. Rxa7 {[%clk 0:00:16]} 1-0

[Event "Late-Titled-Tuesday-Blitz-May-28-2024"]
[Site "Chess.com"]
[Date "2024.05.28"]
[Round "3"]
[White "ACollins05"]
[Black "BenchGM"]
[Result "1-0"]
[WhiteElo "2484"]
[BlackElo "2230"]
[TimeControl "180+1"]
[EndTime "14:28:53 PDT"]
[Termination "ACollins05 won by checkmate"]

1. Nf3 {[%clk 0:03:00.9]} 1... Nf6 {[%clk 0:02:59.3]} 2. e3 {[%clk 0:03:00.7]}
2... b6 {[%clk 0:02:59.5]} 3. b3 {[%clk 0:03:00.9]} 3... Bb7 {[%clk 0:02:59.6]}
4. Bb2 {[%clk 0:02:59.1]} 4... g6 {[%clk 0:02:59.7]} 5. Be2 {[%clk 0:02:59.4]}
5... Bg7 {[%clk 0:02:59.7]} 6. O-O {[%clk 0:03:00]} 6... O-O {[%clk 0:03:00]} 7.
d4 {[%clk 0:03:00.6]} 7... d6 {[%clk 0:02:59.8]} 8. c4 {[%clk 0:03:01.1]} 8...
Nbd7 {[%clk 0:03:00.2]} 9. Nc3 {[%clk 0:03:01.3]} 9... Re8 {[%clk 0:03:00.7]}
10. b4 {[%clk 0:02:58.3]} 10... a5 {[%clk 0:03:00.6]} 11. a3 {[%clk 0:02:58.2]}
11... e5 {[%clk 0:03:00.2]} 12. Qc2 {[%clk 0:02:52.7]} 12... exd4 {[%clk
0:02:58.6]} 13. Nxd4 {[%clk 0:02:51.5]} 13... Ne4 {[%clk 0:02:58.5]} 14. Bf3
{[%clk 0:02:47.1]} 14... f5 {[%clk 0:02:56.7]} 15. Rfd1 {[%clk 0:02:41.1]} 15...
Qc8 {[%clk 0:02:54.7]} 16. Nxe4 {[%clk 0:02:34.8]} 16... fxe4 {[%clk 0:02:48.1]}
17. Bg4 {[%clk 0:02:34.3]} 17... h5 {[%clk 0:02:47.7]} 18. Be2 {[%clk
0:02:29.1]} 18... Ne5 {[%clk 0:02:46]} 19. c5 {[%clk 0:02:29.2]} 19... bxc5
{[%clk 0:01:53.9]} 20. bxc5 {[%clk 0:02:30.1]} 20... Ba6 {[%clk 0:01:54.1]} 21.
Bxa6 {[%clk 0:02:25.1]} 21... Rxa6 {[%clk 0:01:55]} 22. cxd6 {[%clk 0:02:19.7]}
22... cxd6 {[%clk 0:01:53.3]} 23. Qxe4 {[%clk 0:02:16]} 23... Kh7 {[%clk
0:01:38.3]} 24. Rac1 {[%clk 0:02:12.5]} 24... Qb8 {[%clk 0:01:37.8]} 25. Ba1
{[%clk 0:02:08.2]} 25... Rb6 {[%clk 0:01:32.1]} 26. Qc2 {[%clk 0:02:01.8]} 26...
Qa8 {[%clk 0:01:25.8]} 27. Qc7 {[%clk 0:01:55.1]} 27... Qa6 {[%clk 0:01:18.9]}
28. Nc6 {[%clk 0:01:35.1]} 28... Rxc6 {[%clk 0:01:13]} 29. Rxc6 {[%clk
0:01:27.5]} 29... Qxc6 {[%clk 0:01:13.9]} 30. Qa7 {[%clk 0:01:22.8]} 30... Qc2
{[%clk 0:01:07.4]} 31. Rf1 {[%clk 0:01:21.2]} 31... Qf5 {[%clk 0:01:05.7]} 32.
Rd1 {[%clk 0:01:15.4]} 32... Qg4 {[%clk 0:01:03.7]} 33. Rxd6 {[%clk 0:01:11.1]}
33... Nf3+ {[%clk 0:00:59.4]} 34. Kh1 {[%clk 0:01:03.2]} 34... Ne5 {[%clk
0:00:58.4]} 35. h3 {[%clk 0:00:55.6]} 35... Qg5 {[%clk 0:00:57.8]} 36. f4 {[%clk
0:00:52.6]} 36... Qf5 {[%clk 0:00:47]} 37. Bxe5 {[%clk 0:00:38.8]} 37... Rxe5
{[%clk 0:00:38.3]} 38. fxe5 {[%clk 0:00:39.7]} 38... Kh6 {[%clk 0:00:38.6]} 39.
Rd1 {[%clk 0:00:26.5]} 39... Bxe5 {[%clk 0:00:37.8]} 40. Qxa5 {[%clk 0:00:24.8]}
40... Qg5 {[%clk 0:00:35.5]} 41. Rd5 {[%clk 0:00:13.9]} 41... Qxe3 {[%clk
0:00:34.8]} 42. Rxe5 {[%clk 0:00:13.4]} 42... Qc1+ {[%clk 0:00:34.7]} 43. Qe1
{[%clk 0:00:12.8]} 43... Qc6 {[%clk 0:00:32.8]} 44. Re6 {[%clk 0:00:10.5]} 44...
Qc4 {[%clk 0:00:29]} 45. Qe3+ {[%clk 0:00:09.3]} 45... Kg7 {[%clk 0:00:27.3]}
46. Re7+ {[%clk 0:00:09.9]} 46... Kf6 {[%clk 0:00:26.9]} 47. Qe5# {[%clk
0:00:09.2]} 1-0

[Event "Late-Titled-Tuesday-Blitz-May-28-2024"]
[Site "Chess.com"]
[Date "2024.05.28"]
[Round "3"]
[White "rhungaski"]
[Black "Redzishchess"]
[Result "1-0"]
[WhiteElo "2605"]
[BlackElo "2443"]
[TimeControl "180+1"]
[EndTime "14:28:54 PDT"]
[Termination "rhungaski won by resignation"]

1. b3 {[%clk 0:03:00.9]} 1... a5 {[%clk 0:02:54]} 2. c4 {[%clk 0:03:00.3]} 2...
e5 {[%clk 0:02:52.5]} 3. Bb2 {[%clk 0:03:00.1]} 3... Nc6 {[%clk 0:02:52.5]} 4.
e3 {[%clk 0:02:51.1]} 4... Nf6 {[%clk 0:02:49.1]} 5. a3 {[%clk 0:02:51.2]} 5...
Bc5 {[%clk 0:02:44.7]} 6. d4 {[%clk 0:02:46.3]} 6... exd4 {[%clk 0:02:43.6]} 7.
exd4 {[%clk 0:02:47.2]} 7... Ba7 {[%clk 0:02:37.3]} 8. h3 {[%clk 0:02:37.6]}
8... O-O {[%clk 0:02:26]} 9. Nf3 {[%clk 0:02:38]} 9... d6 {[%clk 0:02:24.6]} 10.
Be2 {[%clk 0:02:33.9]} 10... Bf5 {[%clk 0:02:24.3]} 11. O-O {[%clk 0:02:34.3]}
11... h6 {[%clk 0:02:20.4]} 12. Nc3 {[%clk 0:02:34.1]} 12... Re8 {[%clk
0:02:14]} 13. Re1 {[%clk 0:02:34.5]} 13... Qd7 {[%clk 0:01:55.3]} 14. Nb5 {[%clk
0:02:33.7]} 14... Bb6 {[%clk 0:01:41.7]} 15. Rc1 {[%clk 0:02:23.5]} 15... Ne4
{[%clk 0:01:25.5]} 16. Bf1 {[%clk 0:02:18.4]} 16... Bh7 {[%clk 0:01:10.7]} 17.
Re3 {[%clk 0:02:13.3]} 17... Re7 {[%clk 0:00:41.2]} 18. Bd3 {[%clk 0:02:03.3]}
18... Rae8 {[%clk 0:00:41.2]} 19. Qe2 {[%clk 0:02:03.9]} 19... Ng3 {[%clk
0:00:34.7]} 20. Bxh7+ {[%clk 0:01:56.3]} 20... Kxh7 {[%clk 0:00:31.1]} 21. Qc2+
{[%clk 0:01:53.1]} 21... Ne4 {[%clk 0:00:18.5]} 22. c5 {[%clk 0:01:40.3]} 22...
dxc5 {[%clk 0:00:16.6]} 23. dxc5 {[%clk 0:01:41]} 23... Bxc5 {[%clk 0:00:12.1]}
24. Rxe4 {[%clk 0:01:41.5]} 24... Rxe4 {[%clk 0:00:08.6]} 25. Qxc5 {[%clk
0:01:41.5]} 25... Kg8 {[%clk 0:00:07.4]} 26. Qc3 {[%clk 0:01:34.5]} 26... f6
{[%clk 0:00:07.1]} 27. Nbd4 {[%clk 0:01:05.3]} 27... Nxd4 {[%clk 0:00:06.5]} 28.
Nxd4 {[%clk 0:01:06.2]} 28... c6 {[%clk 0:00:03.7]} 29. Nf3 {[%clk 0:00:57.2]}
29... a4 {[%clk 0:00:03.6]} 30. bxa4 {[%clk 0:00:56.1]} 30... Qf7 {[%clk
0:00:01.4]} 31. Qd3 {[%clk 0:00:50.4]} 31... Re2 {[%clk 0:00:01.2]} 32. Bd4
{[%clk 0:00:45.8]} 32... Ra2 {[%clk 0:00:01.3]} 33. Be3 {[%clk 0:00:39.1]} 33...
Qf8 {[%clk 0:00:01]} 34. Qb3+ {[%clk 0:00:36.3]} 34... Qf7 {[%clk 0:00:01.5]}
35. Qb4 {[%clk 0:00:30]} 35... Re7 {[%clk 0:00:01]} 36. Nd4 {[%clk 0:00:27.3]}
36... Rd7 {[%clk 0:00:01.6]} 37. a5 {[%clk 0:00:26.5]} 37... c5 {[%clk
0:00:01.3]} 38. Qxc5 {[%clk 0:00:24.4]} 38... f5 {[%clk 0:00:01.8]} 39. Nxf5
{[%clk 0:00:21.3]} 39... Rd5 {[%clk 0:00:02.3]} 40. Qxd5 {[%clk 0:00:20.4]}
40... Qxd5 {[%clk 0:00:02.3]} 41. Ne7+ {[%clk 0:00:21.1]} 1-0

[Event "Late-Titled-Tuesday-Blitz-May-28-2024"]
[Site "Chess.com"]
[Date "2024.05.28"]
[Round "3"]
[White "th3d4rkness"]
[Black "KorolDimitriy75"]
[Result "0-1"]
[WhiteElo "2149"]
[BlackElo "2398"]
[TimeControl "180+1"]
[EndTime "14:28:54 PDT"]
[Termination "KorolDimitriy75 won on time"]

1. e4 {[%clk 0:03:00.9]} 1... c5 {[%clk 0:03:00.1]} 2. Nc3 {[%clk 0:03:00.3]}
2... g6 {[%clk 0:03:00.1]} 3. d4 {[%clk 0:02:58.8]} 3... cxd4 {[%clk 0:02:59.9]}
4. Qxd4 {[%clk 0:02:59.3]} 4... Nf6 {[%clk 0:03:00.5]} 5. Bd2 {[%clk 0:02:54.7]}
5... Nc6 {[%clk 0:03:00.1]} 6. Qe3 {[%clk 0:02:54.3]} 6... Bg7 {[%clk
0:03:00.2]} 7. O-O-O {[%clk 0:02:52.9]} 7... O-O {[%clk 0:02:58.5]} 8. Kb1
{[%clk 0:02:47.4]} 8... d5 {[%clk 0:02:41.9]} 9. Nxd5 {[%clk 0:02:24.3]} 9...
Nxd5 {[%clk 0:02:42.8]} 10. exd5 {[%clk 0:02:24.6]} 10... Qxd5 {[%clk
0:02:43.2]} 11. Nf3 {[%clk 0:02:01.9]} 11... Be6 {[%clk 0:02:02.9]} 12. b3
{[%clk 0:01:58.9]} 12... a5 {[%clk 0:01:47.4]} 13. Bc4 {[%clk 0:01:58.1]} 13...
Qf5 {[%clk 0:01:18.7]} 14. Bxe6 {[%clk 0:01:47.7]} 14... Qf6 {[%clk 0:01:07.3]}
15. Bc3 {[%clk 0:01:39.9]} 15... Qxc3 {[%clk 0:01:05.7]} 16. Qxc3 {[%clk
0:01:37.7]} 16... Bxc3 {[%clk 0:01:06.6]} 17. Bd5 {[%clk 0:01:26.1]} 17... Nb4
{[%clk 0:00:38]} 18. Bxb7 {[%clk 0:01:16.2]} 18... Ra7 {[%clk 0:00:38.1]} 19.
Bd5 {[%clk 0:00:58.7]} 19... a4 {[%clk 0:00:38]} 20. Bc4 {[%clk 0:00:54.7]}
20... Rb8 {[%clk 0:00:22.9]} 21. Nd4 {[%clk 0:00:43.7]} 21... axb3 {[%clk
0:00:17.1]} 22. Bxb3 {[%clk 0:00:41]} 22... e5 {[%clk 0:00:09.9]} 23. Ne2 {[%clk
0:00:17.1]} 23... Nxa2 {[%clk 0:00:09.9]} 24. Rd3 {[%clk 0:00:08.7]} 24... Bd4
{[%clk 0:00:06]} 25. Nxd4 {[%clk 0:00:06.8]} 25... exd4 {[%clk 0:00:06.9]} 26.
Rxd4 {[%clk 0:00:05.4]} 26... Nc3+ {[%clk 0:00:06.2]} 27. Kb2 {[%clk 0:00:05.8]}
27... Nb5 {[%clk 0:00:05.3]} 28. Rd5 {[%clk 0:00:01.6]} 28... Kg7 {[%clk
0:00:02.9]} 29. Rhd1 {[%clk 0:00:01.3]} 29... Rbb7 {[%clk 0:00:02.3]} 30. Rd8
{[%clk 0:00:01.4]} 30... h5 {[%clk 0:00:01.8]} 31. R1d3 {[%clk 0:00:01.1]} 31...
Na3 {[%clk 0:00:01.7]} 32. Rc3 {[%clk 0:00:00.7]} 32... h4 {[%clk 0:00:01]} 0-1

[Event "Late-Titled-Tuesday-Blitz-May-28-2024"]
[Site "Chess.com"]
[Date "2024.05.28"]
[Round "3"]
[White "CDOEspiao"]
[Black "PhileKhoob"]
[Result "0-1"]
[WhiteElo "2529"]
[BlackElo "2331"]
[TimeControl "180+1"]
[EndTime "14:28:57 PDT"]
[Termination "PhileKhoob won by checkmate"]

1. d4 {[%clk 0:02:58.6]} 1... d5 {[%clk 0:02:59.8]} 2. Nc3 {[%clk 0:02:58.9]}
2... Nf6 {[%clk 0:02:58.8]} 3. Bf4 {[%clk 0:02:59.3]} 3... Bf5 {[%clk
0:02:54.3]} 4. Nb5 {[%clk 0:02:58.6]} 4... Na6 {[%clk 0:02:54]} 5. f3 {[%clk
0:02:59.2]} 5... c6 {[%clk 0:02:52.9]} 6. Nc3 {[%clk 0:02:59.2]} 6... e6 {[%clk
0:02:52.1]} 7. g4 {[%clk 0:02:59.3]} 7... Bg6 {[%clk 0:02:51.5]} 8. h4 {[%clk
0:02:59.8]} 8... h6 {[%clk 0:02:49.9]} 9. e3 {[%clk 0:03:00]} 9... Bd6 {[%clk
0:02:48.6]} 10. Bxa6 {[%clk 0:02:59.2]} 10... bxa6 {[%clk 0:02:47.3]} 11. Nge2
{[%clk 0:02:59.7]} 11... Rb8 {[%clk 0:02:43.6]} 12. Na4 {[%clk 0:02:56.8]} 12...
Bxf4 {[%clk 0:02:24.6]} 13. Nxf4 {[%clk 0:02:56.8]} 13... Qa5+ {[%clk 0:02:25]}
14. c3 {[%clk 0:02:57.3]} 14... Nd7 {[%clk 0:02:21.7]} 15. b4 {[%clk 0:02:51.2]}
15... Qb5 {[%clk 0:02:11.1]} 16. Nxg6 {[%clk 0:02:43.3]} 16... fxg6 {[%clk
0:02:12]} 17. Qc2 {[%clk 0:02:27.1]} 17... O-O {[%clk 0:02:03.5]} 18. Kf2 {[%clk
0:02:16.6]} 18... e5 {[%clk 0:02:00.7]} 19. Nc5 {[%clk 0:02:08.3]} 19... Nxc5
{[%clk 0:01:56.2]} 20. bxc5 {[%clk 0:02:09.2]} 20... Qb2 {[%clk 0:01:41]} 21.
Rhc1 {[%clk 0:02:07.1]} 21... e4 {[%clk 0:01:39]} 22. f4 {[%clk 0:02:05]} 22...
Rb7 {[%clk 0:01:31.8]} 23. Ke2 {[%clk 0:02:00.8]} 23... Rfb8 {[%clk 0:01:27.8]}
24. Kd2 {[%clk 0:01:50.9]} 24... Qa3 {[%clk 0:01:12.9]} 25. Rcb1 {[%clk
0:01:47]} 25... Rb2 {[%clk 0:01:11.4]} 26. Kd1 {[%clk 0:01:41.7]} 26... Kh7
{[%clk 0:00:47.7]} 27. h5 {[%clk 0:01:18.7]} 27... Rxc2 {[%clk 0:00:37.3]} 28.
hxg6+ {[%clk 0:01:18.1]} 28... Kxg6 {[%clk 0:00:36]} 29. Kxc2 {[%clk 0:01:13.3]}
29... Rxb1 {[%clk 0:00:33.4]} 30. Rxb1 {[%clk 0:01:14.2]} 30... Qxa2+ {[%clk
0:00:33.2]} 31. Rb2 {[%clk 0:01:13.8]} 31... Qc4 {[%clk 0:00:33.6]} 32. Rb7
{[%clk 0:01:13.5]} 32... Qe2+ {[%clk 0:00:31.3]} 33. Kb3 {[%clk 0:01:14]} 33...
Qxe3 {[%clk 0:00:30.8]} 34. f5+ {[%clk 0:01:14.1]} 34... Kf6 {[%clk 0:00:30.7]}
35. Rxa7 {[%clk 0:01:14.5]} 35... Qd3 {[%clk 0:00:29.2]} 36. Rc7 {[%clk
0:01:09.3]} 36... Qb5+ {[%clk 0:00:22.8]} 37. Kc2 {[%clk 0:01:09.4]} 37... e3
{[%clk 0:00:23.2]} 38. Rc8 {[%clk 0:01:08.8]} 38... e2 {[%clk 0:00:16.1]} 39.
Re8 {[%clk 0:01:01.5]} 39... a5 {[%clk 0:00:14.1]} 40. Kd2 {[%clk 0:00:58.7]}
40... a4 {[%clk 0:00:13.7]} 41. Re6+ {[%clk 0:00:57.4]} 41... Kf7 {[%clk
0:00:12.8]} 42. c4 {[%clk 0:00:45.2]} 42... Qxc4 {[%clk 0:00:11.4]} 43. Rxc6
{[%clk 0:00:45.8]} 43... Qb4+ {[%clk 0:00:08.8]} 44. Ke3 {[%clk 0:00:33.8]}
44... e1=Q+ {[%clk 0:00:08.6]} 45. Kf3 {[%clk 0:00:34.5]} 45... Qbc3+ {[%clk
0:00:08.6]} 46. Kf4 {[%clk 0:00:34.7]} 46... Qee3# {[%clk 0:00:09.1]} 0-1

[Event "Late-Titled-Tuesday-Blitz-May-28-2024"]
[Site "Chess.com"]
[Date "2024.05.28"]
[Round "3"]
[White "Kombinator01"]
[Black "Galileo22"]
[Result "0-1"]
[WhiteElo "2473"]
[BlackElo "2653"]
[TimeControl "180+1"]
[EndTime "14:28:58 PDT"]
[Termination "Galileo22 won by checkmate"]

1. d4 {[%clk 0:03:00.9]} 1... d6 {[%clk 0:02:54.3]} 2. e4 {[%clk 0:03:00.2]}
2... Nf6 {[%clk 0:02:53.6]} 3. Nc3 {[%clk 0:03:00.2]} 3... e5 {[%clk 0:02:53.3]}
4. Nf3 {[%clk 0:03:00.3]} 4... Nbd7 {[%clk 0:02:53.4]} 5. Bc4 {[%clk 0:02:58.2]}
5... c6 {[%clk 0:02:50]} 6. a4 {[%clk 0:02:57.2]} 6... Be7 {[%clk 0:02:42.6]} 7.
O-O {[%clk 0:02:55]} 7... Qc7 {[%clk 0:02:40.3]} 8. Qe2 {[%clk 0:02:54.9]} 8...
b6 {[%clk 0:02:37.4]} 9. dxe5 {[%clk 0:02:51.5]} 9... dxe5 {[%clk 0:02:38.3]}
10. Ng5 {[%clk 0:02:50]} 10... O-O {[%clk 0:02:35.4]} 11. Bxf7+ {[%clk
0:02:50.6]} 11... Rxf7 {[%clk 0:02:35.2]} 12. Qc4 {[%clk 0:02:51.3]} 12... Nf8
{[%clk 0:02:23]} 13. Qxf7+ {[%clk 0:02:48.8]} 13... Kh8 {[%clk 0:02:23]} 14. Qc4
{[%clk 0:02:10.8]} 14... h6 {[%clk 0:02:22.6]} 15. Nf3 {[%clk 0:02:09.1]} 15...
Be6 {[%clk 0:02:20.6]} 16. Qe2 {[%clk 0:02:04.7]} 16... Ng6 {[%clk 0:02:20.7]}
17. b3 {[%clk 0:01:52.4]} 17... Rf8 {[%clk 0:02:13.2]} 18. a5 {[%clk 0:01:45.6]}
18... b5 {[%clk 0:02:10]} 19. Be3 {[%clk 0:01:28.4]} 19... Nh5 {[%clk
0:02:04.5]} 20. Qd2 {[%clk 0:01:15.7]} 20... Rxf3 {[%clk 0:02:02.7]} 21. gxf3
{[%clk 0:01:14.9]} 21... Bb4 {[%clk 0:01:51.1]} 22. Bxh6 {[%clk 0:01:09]} 22...
Nh4 {[%clk 0:01:43.2]} 23. Kh1 {[%clk 0:01:01.1]} 23... Qf7 {[%clk 0:01:36.6]}
24. Qg5 {[%clk 0:00:54]} 24... Qxf3+ {[%clk 0:01:29.1]} 25. Kg1 {[%clk
0:00:53.7]} 25... Be7 {[%clk 0:01:21.7]} 26. Bxg7+ {[%clk 0:00:44.2]} 26... Nxg7
{[%clk 0:01:14.7]} 27. Qg3 {[%clk 0:00:42.9]} 27... Qh5 {[%clk 0:01:05.3]} 28.
f4 {[%clk 0:00:38]} 28... exf4 {[%clk 0:00:57.7]} 29. Rxf4 {[%clk 0:00:38.9]}
29... Ng6 {[%clk 0:00:55]} 30. Rff1 {[%clk 0:00:28.6]} 30... Bc5+ {[%clk
0:00:38.5]} 31. Kh1 {[%clk 0:00:28.9]} 31... Bd4 {[%clk 0:00:37.6]} 32. Rad1
{[%clk 0:00:27.7]} 32... Be5 {[%clk 0:00:37.4]} 33. Qg2 {[%clk 0:00:22.3]} 33...
Bh3 {[%clk 0:00:32.8]} 34. Qf3 {[%clk 0:00:18.2]} 34... Bg4 {[%clk 0:00:30.2]}
35. Rd8+ {[%clk 0:00:17.6]} 35... Kh7 {[%clk 0:00:29.9]} 36. Qg2 {[%clk
0:00:17.8]} 36... Nh4 {[%clk 0:00:22.9]} 37. Qf2 {[%clk 0:00:17.6]} 37... Bf3+
{[%clk 0:00:21.9]} 38. Qxf3 {[%clk 0:00:06.4]} 38... Nxf3 {[%clk 0:00:22.8]} 39.
Kg2 {[%clk 0:00:04.3]} 39... Nh4+ {[%clk 0:00:21]} 40. Kh1 {[%clk 0:00:04.5]}
40... Bxc3 {[%clk 0:00:20.8]} 41. Rd7 {[%clk 0:00:04.6]} 41... Qg4 {[%clk
0:00:19.7]} 42. Rff7 {[%clk 0:00:03.4]} 42... Qg2# {[%clk 0:00:19.5]} 0-1

[Event "Late-Titled-Tuesday-Blitz-May-28-2024"]
[Site "Chess.com"]
[Date "2024.05.28"]
[Round "3"]
[White "janhelmer03"]
[Black "juancruzarias"]
[Result "1/2-1/2"]
[WhiteElo "2402"]
[BlackElo "2658"]
[TimeControl "180+1"]
[EndTime "14:29:00 PDT"]
[Termination "Game drawn by repetition"]

1. Nf3 {[%clk 0:03:00]} 1... d5 {[%clk 0:02:58.8]} 2. e3 {[%clk 0:03:00.1]} 2...
Nf6 {[%clk 0:02:57.5]} 3. c4 {[%clk 0:03:00.6]} 3... c6 {[%clk 0:02:56.4]} 4.
Nc3 {[%clk 0:03:00.6]} 4... Bg4 {[%clk 0:02:55.6]} 5. cxd5 {[%clk 0:03:00.8]}
5... cxd5 {[%clk 0:02:56]} 6. Qb3 {[%clk 0:03:01.3]} 6... Bc8 {[%clk 0:02:54.5]}
7. d4 {[%clk 0:02:58.5]} 7... Nc6 {[%clk 0:02:50.2]} 8. Bd2 {[%clk 0:02:58.6]}
8... e6 {[%clk 0:02:49.2]} 9. Rc1 {[%clk 0:02:58.4]} 9... Be7 {[%clk 0:02:48.4]}
10. Bd3 {[%clk 0:02:56.5]} 10... O-O {[%clk 0:02:48.4]} 11. O-O {[%clk
0:02:56.7]} 11... a6 {[%clk 0:02:48.5]} 12. Ne5 {[%clk 0:02:56.1]} 12... Nxe5
{[%clk 0:02:47.8]} 13. dxe5 {[%clk 0:02:56.6]} 13... Nd7 {[%clk 0:02:48.4]} 14.
f4 {[%clk 0:02:37.7]} 14... Nc5 {[%clk 0:02:38.8]} 15. Qc2 {[%clk 0:02:37.2]}
15... Nxd3 {[%clk 0:02:38.3]} 16. Qxd3 {[%clk 0:02:38.1]} 16... Bd7 {[%clk
0:02:37.1]} 17. Rf3 {[%clk 0:02:17.2]} 17... f5 {[%clk 0:02:32.6]} 18. exf6
{[%clk 0:02:17.1]} 18... Bxf6 {[%clk 0:02:32.3]} 19. Rh3 {[%clk 0:02:04.7]}
19... g6 {[%clk 0:02:31.1]} 20. Be1 {[%clk 0:01:52.2]} 20... Rc8 {[%clk
0:02:25.8]} 21. Rd1 {[%clk 0:01:50]} 21... Qb6 {[%clk 0:02:21.6]} 22. b3 {[%clk
0:01:30.3]} 22... Bb5 {[%clk 0:02:16.7]} 23. Nxb5 {[%clk 0:01:29.2]} 23... Qxb5
{[%clk 0:02:16.7]} 24. Qxb5 {[%clk 0:01:16.3]} 24... axb5 {[%clk 0:02:13.7]} 25.
e4 {[%clk 0:01:07.3]} 25... dxe4 {[%clk 0:02:10.1]} 26. Re3 {[%clk 0:01:07.1]}
26... Rfd8 {[%clk 0:01:57.1]} 27. Rxd8+ {[%clk 0:01:01.5]} 27... Bxd8 {[%clk
0:01:56.3]} 28. Rxe4 {[%clk 0:01:02.2]} 28... Kf7 {[%clk 0:01:56.7]} 29. Kf2
{[%clk 0:00:55.7]} 29... Bb6+ {[%clk 0:01:53]} 30. Kf3 {[%clk 0:00:55.2]} 30...
Rc2 {[%clk 0:01:49.1]} 31. Re2 {[%clk 0:00:55.3]} 31... Rc1 {[%clk 0:01:44.6]}
32. Bf2 {[%clk 0:00:51.9]} 32... Bxf2 {[%clk 0:01:42.7]} 33. Kxf2 {[%clk
0:00:50.1]} 33... Ra1 {[%clk 0:01:39.9]} 34. Kf3 {[%clk 0:00:48.8]} 34... Kf6
{[%clk 0:01:31.6]} 35. Ke4 {[%clk 0:00:47.2]} 35... b4 {[%clk 0:01:21.6]} 36.
Kd4 {[%clk 0:00:46.8]} 36... Rc1 {[%clk 0:01:21.6]} 37. g3 {[%clk 0:00:43.5]}
37... h6 {[%clk 0:01:20.2]} 38. Rd2 {[%clk 0:00:37]} 38... Kf5 {[%clk 0:01:19]}
39. Re2 {[%clk 0:00:36]} 39... Kf6 {[%clk 0:01:17.6]} 40. Ke4 {[%clk 0:00:28.1]}
40... Rd1 {[%clk 0:01:10.9]} 41. Rc2 {[%clk 0:00:26.5]} 41... h5 {[%clk
0:01:07.1]} 42. Rc4 {[%clk 0:00:26]} 42... Rd2 {[%clk 0:01:05]} 43. Rxb4 {[%clk
0:00:26.4]} 43... Rxa2 {[%clk 0:01:01.8]} 44. h4 {[%clk 0:00:20.6]} 44... Ra7
{[%clk 0:00:59.1]} 45. Rb6 {[%clk 0:00:20.6]} 45... Ke7 {[%clk 0:00:58.5]} 46.
b4 {[%clk 0:00:19.1]} 46... Kf6 {[%clk 0:00:55.3]} 47. Rb5 {[%clk 0:00:16.6]}
47... Ra3 {[%clk 0:00:54.4]} 48. Rxb7 {[%clk 0:00:14.9]} 48... Rxg3 {[%clk
0:00:54.7]} 49. b5 {[%clk 0:00:13.9]} 49... Rb3 {[%clk 0:00:40.3]} 50. b6 {[%clk
0:00:13.2]} 50... Rb4+ {[%clk 0:00:38.9]} 51. Kf3 {[%clk 0:00:12.3]} 51... Rb3+
{[%clk 0:00:38.9]} 52. Ke4 {[%clk 0:00:12.2]} 52... Rb4+ {[%clk 0:00:39]} 53.
Ke3 {[%clk 0:00:12.3]} 53... Rb3+ {[%clk 0:00:37.4]} 54. Ke4 {[%clk 0:00:08]}
1/2-1/2